{"text_format":"1","workbook":"xlsx","n_sheets":4,"sheets":["Liste des équipes","Entrevues avec les équipes","Stats","Évaluation qualitative"],"not_rendered":{"charts":0,"images":0,"macros":1,"external_links":0,"defined_names":0,"comments":0,"pivot_tables":0},"unopened":[],"bounds":{"document_bytes":16777216,"sheet_cells":100000,"rows_first":2000,"rows_last":500,"rows_between":2000,"halvings":0,"cell_chars":16384,"cell_head_chars":4096},"cells_cut":0,"cells_raw":0,"read":"whole","date_system":"1900"}

{"sheet":"Liste des équipes","index":0,"n_rows":40,"n_cols":3,"rows_kept":40,"cut":false,"hidden":false,"merged":[]}
["TEAM #","NICKNAME","1st YEAR"]
[296,"Northern Knights",1999]
[509,"Red Storm",2001]
[1075,"Sprockets",2003]
[1517,"The Lumberjacks",2005]
[2626,"Evolution",2008]
[2702,"REBotics",2009]
[3117,"Harfangs",2009]
[3360,"Hyperion",2010]
[3379,"Les Ambassadeurs",2010]
[3382,"Les Béliers",2010]
[3386,"Tornades",2010]
[3387,"Les Aigles d'Or",2010]
[3396,"Imperium Machinamentum",2010]
[3530,"Patriotix",2011]
[3532,"Piranha",2011]
[3533,"Mékano",2011]
[3544,"Spartiates",2011]
[3550,"Robotronix",2011]
[3710,"Cyberfalcons",2011]
[3969,"Yeti",2012]
[3975,"Les Dragons",2012]
[3977,"Predateurs Nucléaires",2012]
[3979,"Solaris",2012]
[3981,"Les LOUPS",2012]
[3983,"Bobcats",2012]
[3985,"Sonic Howl",2012]
[3986,"Express-O",2012]
[3987,"Les Audacieux",2012]
[3988,"Scarabot",2012]
[3989,"Classics",2012]
[3990,"Tech for Kids",2012]
[3996,"RIKITIK",2012]
[4007,"Les Cactus",2012]
[4010,"Nautilus",2012]
[4167,"Aquilon",2012]
[4491,"Knights",2013]
[4492,"Chrono",2013]
[4526,"Léoméga",2013]
[4594,"Phénix",2013]

{"sheet":"Entrevues avec les équipes","index":1,"n_rows":2,"n_cols":33,"rows_kept":2,"cut":false,"hidden":false,"merged":[]}
["# d'ÉQUIPE","NOM","1ere ANNÉE",null,"REPRÉSENTANT","ANNÉES","RÔLE","AUTRE COMPÉ?","COMPÉTITION","CLASSEMENT","FINALES?","REPRÉSENTANT","MODE AUTONOME?","DESCRIPTION MODE AUTONOME","LANCEUR?","TYPE LANCEUR","POSITION DE TIR","CIBLE 1","CIBLE 2","CIBLE 3","CIBLE 5","RAMASSEUR?","TYPE DE RAMASSEUR","STATION?","GRIMPEUR?","TYPE DE GRIMPEUR","1er ÉTAGE","2e ÉTAGE","3e ÉTAGE","POIDS DU ROBOT","POINTS PAR MATCH","AUTRES INFORMATIONS INTÉRESSANTES","SONDEUR"]
[2626,"Evolution",2008,null,"Nicolas Sylvestre",3,"Mécanique",false,null,null,false,"Nicolas Sylvestre",false,null,true,"Courbe 1 roue","Station",false,true,true,false,false,null,true,false,null,false,false,false,110,90,"N/A","Nicolas"]

{"sheet":"Stats","index":2,"n_rows":41,"n_cols":15,"rows_kept":41,"cut":false,"hidden":false,"merged":[[0,12,1,12],[0,13,1,13],[0,14,1,14],[0,11,1,11],[0,0,1,0],[0,1,0,4],[0,5,0,7],[0,8,1,8],[0,9,1,9],[0,10,1,10]]}
["Équipe","% succès lancer",null,null,null,"% succès grimper",null,null,"PJ","PG","PP","Rapport PG/PJ","Points marqués","Points alloués","Rapport PM/PT"]
[null,1,2,3,5,"1er","2e","3e"]
[null,null,null,null,null,null,null,null,{"$f":"J3+K3","v":0},null,null,{"$f":"J3/I3","v":{"$error":"#DIV/0!"}},null,null,{"$f":"(M3)/(N3+M3)","v":{"$error":"#DIV/0!"}}]
[null,null,null,null,null,null,null,null,{"$f":"J4+K4","v":0},null,null,{"$f":"J4/I4","v":{"$error":"#DIV/0!"}},null,null,{"$f":"(M4)/(N4+M4)","v":{"$error":"#DIV/0!"}}]
[null,null,null,null,null,null,null,null,0,null,null,{"$error":"#DIV/0!"},null,null,{"$error":"#DIV/0!"}]
[null,null,null,null,null,null,null,null,0,null,null,{"$error":"#DIV/0!"},null,null,{"$error":"#DIV/0!"}]
[null,null,null,null,null,null,null,null,0,null,null,{"$error":"#DIV/0!"},null,null,{"$error":"#DIV/0!"}]
[null,null,null,null,null,null,null,null,0,null,null,{"$error":"#DIV/0!"},null,null,{"$error":"#DIV/0!"}]
[null,null,null,null,null,null,null,null,0,null,null,{"$error":"#DIV/0!"},null,null,{"$error":"#DIV/0!"}]
[null,null,null,null,null,null,null,null,0,null,null,{"$error":"#DIV/0!"},null,null,{"$error":"#DIV/0!"}]
[null,null,null,null,null,null,null,null,0,null,null,{"$error":"#DIV/0!"},null,null,{"$error":"#DIV/0!"}]
[null,null,null,null,null,null,null,null,0,null,null,{"$error":"#DIV/0!"},null,null,{"$error":"#DIV/0!"}]
[null,null,null,null,null,null,null,null,0,null,null,{"$error":"#DIV/0!"},null,null,{"$error":"#DIV/0!"}]
[null,null,null,null,null,null,null,null,0,null,null,{"$error":"#DIV/0!"},null,null,{"$error":"#DIV/0!"}]
[null,null,null,null,null,null,null,null,0,null,null,{"$error":"#DIV/0!"},null,null,{"$error":"#DIV/0!"}]
[null,null,null,null,null,null,null,null,0,null,null,{"$error":"#DIV/0!"},null,null,{"$error":"#DIV/0!"}]
[null,null,null,null,null,null,null,null,0,null,null,{"$error":"#DIV/0!"},null,null,{"$error":"#DIV/0!"}]
[null,null,null,null,null,null,null,null,0,null,null,{"$error":"#DIV/0!"},null,null,{"$error":"#DIV/0!"}]
[null,null,null,null,null,null,null,null,0,null,null,{"$error":"#DIV/0!"},null,null,{"$error":"#DIV/0!"}]
[null,null,null,null,null,null,null,null,0,null,null,{"$error":"#DIV/0!"},null,null,{"$error":"#DIV/0!"}]
[null,null,null,null,null,null,null,null,0,null,null,{"$error":"#DIV/0!"},null,null,{"$error":"#DIV/0!"}]
[null,null,null,null,null,null,null,null,0,null,null,{"$error":"#DIV/0!"},null,null,{"$error":"#DIV/0!"}]
[null,null,null,null,null,null,null,null,0,null,null,{"$error":"#DIV/0!"},null,null,{"$error":"#DIV/0!"}]
[null,null,null,null,null,null,null,null,0,null,null,{"$error":"#DIV/0!"},null,null,{"$error":"#DIV/0!"}]
[null,null,null,null,null,null,null,null,0,null,null,{"$error":"#DIV/0!"},null,null,{"$error":"#DIV/0!"}]
[null,null,null,null,null,null,null,null,0,null,null,{"$error":"#DIV/0!"},null,null,{"$error":"#DIV/0!"}]
[null,null,null,null,null,null,null,null,0,null,null,{"$error":"#DIV/0!"},null,null,{"$error":"#DIV/0!"}]
[null,null,null,null,null,null,null,null,0,null,null,{"$error":"#DIV/0!"},null,null,{"$error":"#DIV/0!"}]
[null,null,null,null,null,null,null,null,0,null,null,{"$error":"#DIV/0!"},null,null,{"$error":"#DIV/0!"}]
[null,null,null,null,null,null,null,null,0,null,null,{"$error":"#DIV/0!"},null,null,{"$error":"#DIV/0!"}]
[null,null,null,null,null,null,null,null,0,null,null,{"$error":"#DIV/0!"},null,null,{"$error":"#DIV/0!"}]
[null,null,null,null,null,null,null,null,0,null,null,{"$error":"#DIV/0!"},null,null,{"$error":"#DIV/0!"}]
[null,null,null,null,null,null,null,null,0,null,null,{"$error":"#DIV/0!"},null,null,{"$error":"#DIV/0!"}]
[null,null,null,null,null,null,null,null,0,null,null,{"$error":"#DIV/0!"},null,null,{"$error":"#DIV/0!"}]
[null,null,null,null,null,null,null,null,0,null,null,{"$error":"#DIV/0!"},null,null,{"$error":"#DIV/0!"}]
[null,null,null,null,null,null,null,null,0,null,null,{"$error":"#DIV/0!"},null,null,{"$error":"#DIV/0!"}]
[null,null,null,null,null,null,null,null,0,null,null,{"$error":"#DIV/0!"},null,null,{"$error":"#DIV/0!"}]
[null,null,null,null,null,null,null,null,0,null,null,{"$error":"#DIV/0!"},null,null,{"$error":"#DIV/0!"}]
[null,null,null,null,null,null,null,null,0,null,null,{"$error":"#DIV/0!"},null,null,{"$error":"#DIV/0!"}]
[null,null,null,null,null,null,null,null,0,null,null,{"$error":"#DIV/0!"},null,null,{"$error":"#DIV/0!"}]
[null,null,null,null,null,null,null,null,0,null,null,{"$error":"#DIV/0!"},null,null,{"$error":"#DIV/0!"}]

{"sheet":"Évaluation qualitative","index":3,"n_rows":1,"n_cols":6,"rows_kept":1,"cut":false,"hidden":false,"merged":[]}
["Équipe","Points forts","Points faibles","Avantages","Désavantages","Talon d'Achile"]